fUSD/lending_fUSD_20240501
["ID","MTS","AMOUNT","RATE_DAILY","PERIOD"]
[325190500,1714566631829,-151.46769875,0.00011853,2]
[325190501,1714566631839,-557.65306614,0.00011888,2]
[325190502,1714566631851,-750.45442755,0.00011888,2]
[325190503,1714566631860,-682.23321971,0.00011988,2]
[325190504,1714566631872,-117.76678029,0.00011988,2]
[325190505,1714566631882,-492.09666633,0.00011998,2]
[325190506,1714566631901,-117.35333367,0.00011998,2]
[325190507,1714566631911,-243.67,0.00011999,2]
[325190508,1714566631920,-200.0,0.00012108,2]
[325190509,1714566631930,-4541.53113884,0.00012798,2]
[325190510,1714566631960,-2958.46886116,0.00012798,2]
[325190511,1714566631970,-3000.0,0.0001287,2]
[325190512,1714566631979,-876.59854396,0.00012886,2]
[325190514,1714566631988,-342.77116761,0.00012894,2]
[325190516,1714566631997,-1000.0,0.00012895,2]
[325190517,1714566632007,-500.0,0.00012895,2]
[325190519,1714566632016,-1000.0,0.00012896,2]
[325190520,1714566632026,-15289.4542,0.00012896,2]
[325190521,1714566632035,-302880.95540442,0.00012896,2]
[325190522,1714566632044,-1000.0,0.00012896,2]
[325190523,1714566632053,-1000.0,0.00012896,2]
[325190524,1714566632063,-500.0,0.00012896,2]
[325190525,1714566632072,-14549.72779246,0.000129,2]
[325190526,1714566632086,-615.25441392,0.000129,2]
[325190527,1714566632097,-14391.53982415,0.000129,2]
[325190528,1714566632135,-31153.22281947,0.000129,2]
[325190529,1714566632145,-4583.44785109,0.00012982,2]
[325190530,1714566632154,-326.72350736,0.00012987,2]
[325190531,1714566632164,-178.3261236,0.0001299,2]
[325190532,1714566632173,-178.3261236,0.0001299,2]
[325190533,1714566632182,-314.311111,0.00012991,2]
[325190534,1714566632192,-314.311111,0.00012991,2]
[325190535,1714566632201,-314.311111,0.00012991,2]
[325190536,1714566632210,-314.311111,0.00012991,2]
[325190537,1714566632219,-549.2390115,0.00012991,2]
[325190538,1714566632228,-435.9430719,0.00012991,2]
[325190539,1714566632238,-322.6471323,0.00012991,2]
[325190540,1714566632247,-209.3511927,0.00012991,2]
[325190541,1714566632255,-706.66913894,0.00012994,2]
[325190542,1714566632265,-669.4705482,0.00012994,2]
[325190543,1714566632274,-161.39436399,0.00012994,2]
[325190544,1714566632284,-200.42770769,0.00012995,2]
[325190545,1714566632294,-787.53935465,0.00012996,2]
[325190546,1714566632303,-505.69769097,0.00012996,2]
[325190547,1714566632313,-436.13131744,0.00012996,2]
[325190548,1714566632322,-155.0544003,0.00012997,2]
[325190549,1714566632333,-15490.80685744,0.00012998,2]
[325190550,1714566632346,-125291.26258452,0.00012998,2]
[325190551,1714566632358,-2240.43713712,0.00012998,2]
[325190552,1714566632369,-663.82444517,0.00012998,2]
[325190553,1714566632382,-555.59877824,0.00012998,2]
[325190554,1714566632395,-350.0,0.00012998,2]
[325190555,1714566632407,-544.02,0.00012998,2]
[325190556,1714566632452,-31257.0033684,0.00012998,2]
[325190557,1714566632463,-1809.22291569,0.00012999,3]
[325190558,1714566632473,-348.52068398,0.00012999,2]
[325190559,1714566632483,-940.0,0.00013,2]
[325190560,1714566632492,-37715.55437768,0.00013,2]
[325190561,1714566632504,-3618.80440553,0.00013,2]
[325190591,1714566637652,-2497.16,0.00011888,2]
[325190592,1714566637661,-3328.5393,0.00013,2]
[325190594,1714566637673,-258794.85471862,0.00013,2]
[325190599,1714566637753,-2608.70054198,0.00013,2]
[325190600,1714566637765,-19334.94020919,0.00013,2]
[325190601,1714566637777,-20045.1978705,0.00013,2]
[325190602,1714566637937,-217855.51178411,0.00013,2]
[325190603,1714566637959,-2989318.16018089,0.00013,2]
[325190604,1714566637968,-114039.75103876,0.00013,2]
[325190605,1714566637978,-1379391.89777604,0.00013,2]
[325190606,1714566637988,-337862.51327201,0.00013,2]
[325190607,1714566637997,-208.0,0.00013,2]
[325190608,1714566638007,-208.0,0.00013,2]
[325190609,1714566638016,-208.0,0.00013,2]
[325190610,1714566638025,-208.0,0.00013,2]
[325190611,1714566638035,-201.0,0.00013,2]
[325190612,1714566638044,-201.0,0.00013,2]
[325190613,1714566638053,-201.0,0.00013,2]
[325190614,1714566638062,-72961.82624374,0.00013,2]
[325190615,1714566638074,-215437.25491885,0.00013,2]
[325190616,1714566638083,-470.36929001,0.00013,2]
[325190617,1714566638095,-407.33956612,0.00013,2]
[325190618,1714566638104,-7613.3449372,0.00013,2]
[325190619,1714566638116,-2022.81688463,0.00013,2]
[325190622,1714566639724,-1203.10493608,0.0001288,2]
[325190623,1714566639737,-7119.2795379,0.0001288,2]
[325190624,1714566639750,-387.70529325,0.0001288,2]
[325190625,1714566639766,-541.24062534,0.0001288,2]
[325190626,1714566639779,-374.48824242,0.0001288,2]
[325190627,1714566639790,-13512.56468285,0.0001288,2]
[325190628,1714566639802,-8643.67207993,0.0001288,2]
[325190629,1714566639827,-474.63645045,0.0001288,2]
[325190630,1714566639867,-724.36043818,0.0001288,2]
[325190631,1714566639880,-324.43169441,0.0001288,2]
[325190632,1714566639892,-11733.83642996,0.0001288,2]
[325190633,1714566639902,-174.26034199,0.00012999,2]
[325190634,1714566639912,-841.0,0.00013,2]
[325190635,1714566639922,-16279.21881005,0.00013,2]
[325190636,1714566639972,-359.56579989,0.00013,2]
[325190637,1714566640069,-84680.12963174,0.00013,2]
[325190638,1714566640081,-46103.43255608,0.00013,2]
[325190639,1714566640095,-3250.0,0.00013,2]
[325190640,1714566640171,-734.59869,0.00013,2]
[325190641,1714566640188,-1013.8937897,0.00013,2]
[325190642,1714566640199,-1906.93647508,0.00013,2]
[325190643,1714566640212,-115991.76190796,0.00013,2]
[325190644,1714566640224,-9257.40000601,0.00013,2]
[325190645,1714566640270,-589.56767004,0.00013,2]
[325190646,1714566640283,-399.31545818,0.00013,2]
[325190677,1714566643363,-1134.88,0.00011999,2]
[325190678,1714566643372,-76404.14585267,0.00013,2]
[325190690,1714566645589,-174.26034199,0.00012999,2]
[325190691,1714566645599,-375.25475727,0.00012999,2]
[325190692,1714566645609,-155.0,0.00012999,2]
[325190693,1714566645618,-313192.84664571,0.00013,2]
[325190694,1714566645771,-5823.7,0.00013,2]
[325190695,1714566645782,-1003.13186038,0.00013,2]
[325190696,1714566645799,-889.14929002,0.00013,2]
[325190697,1714566645811,-508.01561448,0.00013,2]
[325190698,1714566645914,-13618.17632126,0.00013,2]
[325190699,1714566645926,-9144.15966109,0.00013,2]
[325190702,1714566864276,-524.39078621,0.00011695,2]
[325190703,1714566864298,-155.0,0.00011696,2]
[325190704,1714566864319,-749.93391595,0.00011697,2]
[325190705,1714566869837,604.0,0.00011694,2]
[325190706,1714566872121,161.90270014,0.00011597,2]
[325190707,1714566934933,1804.7725977,9.75e-05,2]
[325190708,1714566934953,738.29470892,9.75e-05,2]
[325190709,1714566936648,399.55332141,0.00011597,2]
[325190710,1714566951137,249.55890854,0.00011597,2]
[325190711,1714566956866,353.47386846,8.698e-05,2]
[325190712,1714567105558,2259.11919267,8.698e-05,2]
[325190713,1714567105579,4000.0,8.698e-05,2]
[325190714,1714567105602,4000.0,8.698e-05,2]
[325190715,1714567105631,78464.11322822,8.698e-05,2]
[325190719,1714567138430,179.73027073,0.0001,2]
[325190720,1714567148039,305.56661579,0.0001,2]
[325190783,1714567811432,2500.0,0.00011,2]
[325190795,1714567832120,-1104.66,0.00011203,2]
[325190796,1714567832129,-2467.18322377,0.00011264,2]
[325190797,1714567832141,-279.69657276,0.00011264,2]
[325190798,1714567832153,-1098.8377003,0.00011264,2]
[325190799,1714567832169,-912.05748569,0.00011264,2]
[325190800,1714567832181,-448.74875887,0.00011264,2]
[325190802,1714567832207,-255.97559429,0.00011264,2]
[325190811,1714567832288,-6074.59066432,0.00011264,2]
[325190813,1714567832298,-155.0,0.00011295,2]
[325190815,1714567832308,-939.78,0.00011296,2]
[325190817,1714567832318,-7034.35,0.00011367,2]
[325190819,1714567832327,-3634.0104,0.00011525,2]
[325190821,1714567832337,-200.0,0.00011535,2]
[325190823,1714567832346,-36890.11471621,0.00011535,2]
[325190825,1714567832356,-11177.7439,0.00011539,2]
[325190827,1714567832366,-7500.0,0.00011539,2]
[325190829,1714567832380,-640.0,0.00011608,2]
[325190832,1714567832389,-419.42258672,0.00011629,2]
[325190833,1714567832398,-213.69,0.00011629,2]
[325190835,1714567832407,-213.69,0.00011629,2]
[325190837,1714567832416,-10000.0,0.00011639,2]
[325190839,1714567832426,-91802.59564839,0.00011639,2]
[325190846,1714567832478,-333.00794755,0.00011639,2]
[325190849,1714567832500,-5829.8886504,0.00011639,2]
[325190915,1714567837923,-55470.90750246,0.00011639,2]
[325190916,1714567837935,-385894.142273,0.00011639,2]
[325190917,1714567837945,-175.77,0.00011926,2]
[325190918,1714567837954,-499.99,0.00011926,2]
[325190919,1714567837964,-157.30219282,0.0001201,2]
[325190920,1714567837974,-162.59,0.00012016,2]
[325190921,1714567837983,-234.20779518,0.00012025,2]
[325190922,1714567837992,-213.69,0.0001209,2]
[325190923,1714567838002,-213.69,0.0001209,2]
[325190924,1714567838011,-213.69,0.0001209,2]
[325190925,1714567838021,-464248.51366713,0.000121,2]
[325190926,1714567838031,-2031.259321,0.00012125,2]
[325190927,1714567838040,-1354.172881,0.00012125,2]
[325190928,1714567838049,-169.91,0.0001214,2]
[325190929,1714567838059,-1699.05,0.0001214,2]
[325190930,1714567838068,-162.59,0.00012172,2]
[325190931,1714567838078,-360.0,0.00012211,2]
[325190932,1714567838087,-157.30219279,0.00012233,2]
[325190933,1714567838097,-163.75,0.00012257,2]
[325190934,1714567838106,-2031.259321,0.00012277,2]
[325190935,1714567838116,-1354.172881,0.00012277,2]
[325190936,1714567838126,-522.46,0.000123,2]
[325190937,1714567838135,-150.0,0.0001231,2]
[325190938,1714567838144,-162.59,0.00012329,2]
[325190939,1714567838154,-792.00062365,0.00012347,2]
[325190940,1714567838164,-10000.0,0.00012349,2]
[325190941,1714567838174,-234.20779517,0.00012405,2]
[325190942,1714567838183,-2031.259321,0.00012429,2]
[325190943,1714567838193,-1354.172881,0.00012429,2]
[325190944,1714567838202,-157.30219279,0.00012455,2]
[325190945,1714567838212,-162.59,0.00012485,2]
[325190946,1714567838222,-522.46,0.000125,2]
[325190947,1714567838231,-350.66,0.000125,2]
[325190948,1714567838241,-2031.259321,0.0001258,2]
[325190949,1714567838251,-1354.172881,0.0001258,2]
[325190950,1714567838260,-162.59,0.00012642,2]
[325190951,1714567838269,-157.30219279,0.00012678,2]
[325190952,1714567838278,-700.97,0.00012678,2]
[325190953,1714567838288,-2031.259321,0.00012732,2]
[325190954,1714567838297,-1354.172881,0.00012732,2]
[325190955,1714567838307,-234.20779517,0.00012785,2]
[325190956,1714567838317,-155.0,0.00012798,2]
[325190957,1714567838327,-155.0,0.00012798,2]
[325190958,1714567838337,-710.33944675,0.00012798,2]
[325190959,1714567838347,-167.40337534,0.00012798,2]
[325190960,1714567838356,-409.12386927,0.00012798,2]
[325190961,1714567838367,-684.39883243,0.00012798,2]
[325190962,1714567838377,-155.0,0.00012798,2]
[325190963,1714567838387,-3542.01286038,0.00012798,2]
[325190964,1714567838398,-2392.3434406,0.00012798,2]
[325190965,1714567838407,-2184.01445234,0.00012798,2]
[325190966,1714567838417,-200.35068603,0.00012798,2]
[325190967,1714567838427,-155.16361916,0.00012798,2]
[325190968,1714567838437,-25118.54503712,0.00012798,2]
[325190969,1714567838446,-272.14169324,0.00012798,2]
[325190970,1714567838455,-155.0,0.00012798,2]
[325190971,1714567838464,-2360.54775782,0.00012799,2]
[325190972,1714567838474,-193.1365021,0.00012799,2]
[325190973,1714567838483,-2227.53410612,0.00012799,2]
[325190974,1714567838493,-49049.68309662,0.000128,2]
[325190975,1714567838502,-150.0,0.000128,2]
[325190976,1714567838511,-308.01,0.000128,2]
[325190977,1714567838521,-789.26,0.000128,2]
[325190978,1714567838530,-213.69,0.0001287,2]
[325190979,1714567838539,-213.69,0.0001287,2]
[325190980,1714567838549,-344577.54036677,0.0001288,2]
[325190981,1714567838558,-213.69,0.00012889,2]
[325190982,1714567838567,-1000.0,0.00012895,2]
[325190983,1714567838577,-500.0,0.00012895,2]
[325190984,1714567838586,-1000.0,0.00012896,2]
[325190985,1714567838595,-500.0,0.00012896,2]
[325190986,1714567838604,-52271.9707,0.00012899,2]
[325190987,1714567838613,-157.30219279,0.000129,2]
[325190988,1714567838623,-419.42258672,0.0001299,2]
[325190989,1714567838634,-419.42258672,0.0001299,2]
[325190990,1714567838644,-213.69,0.0001299,2]
[325190991,1714567838653,-213.69,0.0001299,2]
[325190992,1714567838663,-408.60896828,0.00012997,2]
[325190993,1714567838672,-156.3600857,0.00012997,2]
[325190994,1714567838681,-3414.70545517,0.00012998,2]
[325190995,1714567838691,-206.86184835,0.00012998,2]
[325190996,1714567838700,-9754.47135818,0.00012998,2]
[325190997,1714567838712,-1063.22566128,0.00012998,2]
[325190998,1714567838722,-2322.6580486,0.00012998,2]
[325190999,1714567838731,-1777.33405598,0.00012998,2]
[325191000,1714567838741,-596.53,0.00012999,2]
[325191001,1714567838751,-155.0,0.00012999,2]
[325191002,1714567838760,-792.0,0.00013,2]
[325191003,1714567838769,-537364.39351206,0.00013,2]
[325191004,1714567838778,-2624290.03888598,0.00013,2]
[325191005,1714567838788,-358616.18987082,0.00013,2]
[325191006,1714567838801,-499484.4497528,0.00013,2]
[325191007,1714567838816,-517.70459523,0.00013,2]
[325191008,1714567838828,-149395.65794388,0.00013,2]
[325191009,1714567838839,-20400.8,0.00013,2]
[325191010,1714567838914,-582.92,0.00013,2]
[325191011,1714567838945,-2425.32752821,0.00013,2]
[325191062,1714567840258,-11194.03676221,0.00013,2]
[325191069,1714567840310,-5360.09284,0.00013,2]
[325191071,1714567840322,-3747.6,0.00013,2]
[325191073,1714567840338,-884.29427894,0.00013,2]
[325191076,1714567840349,-345.1849985,0.00013,2]
[325191078,1714567840361,-975.9897,0.00013,2]
[325191080,1714567840373,-152563.10282285,0.00013,2]
[325191082,1714567840384,-1748.77005859,0.00013,2]
[325191084,1714567840393,-1810817.43016561,0.00013,2]
[325191088,1714567840419,-540.18000005,0.00013,2]
[325191168,1714567844051,-121927.1354645,0.00013,2]
[325191169,1714567844063,-2365.0,0.00013,2]
[325191170,1714567844083,-4445.23740939,0.00013,2]
[325191171,1714567844098,-543.33974753,0.00013,2]
[325191172,1714567844111,-887.42396043,0.00013,2]
[325191173,1714567844124,-746.60009089,0.00013,2]
[325191174,1714567844137,-1409.74536499,0.00013,2]
[325191175,1714567844148,-1777.0097341,0.00013,2]
[325191176,1714567844159,-42883.33452375,0.00013,2]
[325191177,1714567844177,-3369.65,0.00013,2]
[325191178,1714567844187,-688.56235155,0.00013,2]
[325191179,1714567844202,-1173.38145561,0.00013,2]
[325191180,1714567844215,-610.39572338,0.00013,2]
[325191181,1714567844226,-17269.78652725,0.00013,2]
[325191185,1714567847936,-576.72697962,0.00012999,2]
[325191186,1714567847949,-115.96378067,0.00012999,2]
[325191187,1714567847958,-775.35945499,0.00013,2]
[325191188,1714567847971,-422.63800001,0.00013,2]
[325191189,1714567847982,-8246.39997353,0.00013,2]
[325191190,1714567847995,-86574.49771984,0.00013,2]
[325191191,1714567848007,-81225.11495139,0.00013,2]
[325191192,1714567848019,-1268.27378266,0.00013,2]
[325191193,1714567848038,-1449.70728015,0.00013,2]
[325191194,1714567848139,-766.0,0.00013,2]
[325191195,1714567848148,-10998.3242435,0.00013,2]
[325191196,1714567848160,-553.56974129,0.00013,2]
[325191197,1714567848172,-434.9852885,0.00013,2]
[325191198,1714567848184,-3323.00748072,0.00013,2]
[325191206,1714567898524,4198.75332378,0.0001,2]
[325191207,1714567991236,109397.1549637,0.00011,2]
[325191285,1714568527877,-155.0,0.00010996,2]
[325191286,1714568527903,-150.0,0.00010996,2]
[325191287,1714568527925,-3695.0,0.00010997,2]
[325191288,1714568528462,-4000.0,0.00010997,2]
[325191289,1714568529091,-4000.0,0.00010997,2]
[325191290,1714568529919,-4000.0,0.00010997,2]
[325191291,1714568530966,-3760.37067064,0.00010997,2]
[325191292,1714568530989,-155.0,0.00010999,2]
[325191293,1714568547369,1352.76326128,0.000253,120]
[325191296,1714568571916,-4000.0,0.00011,2]
[325191297,1714568572618,-4000.0,0.00011,2]
[325191298,1714568573199,84.62932936,8.25e-05,2]
[325191299,1714568573222,1634.21166934,8.25e-05,2]
[325191300,1714568573935,-4000.0,0.00011,2]
[325191301,1714568584397,-4000.0,0.00011,2]
[325191302,1714568585116,-863.16609467,0.00011,2]
[325191303,1714568585140,-200.0,0.00011,2]
[325191304,1714568585165,-1631.83177148,0.00011,2]
[325191305,1714568585190,-343.44243652,0.00011,2]
[325191306,1714568629739,961.55969733,0.00011,2]
[325191307,1714568629761,4000.0,0.00011,2]
[325191308,1714568629785,4000.0,0.00011,2]
[325191343,1714568774066,155.0,0.00010999,2]
[325191346,1714568815247,866.96244873,0.00010999,2]
[325191347,1714568831291,557.05926328,0.00010999,2]
[325191359,1714569033006,-22084.93264914,0.00011,2]
[325191361,1714569033018,-161.90270014,0.00011575,2]
[325191362,1714569033027,-595.51,0.00011584,2]
[325191363,1714569033037,-169.91,0.00011608,2]
[325191364,1714569033047,-150.0,0.00011675,2]
[325191365,1714569033056,-16020.0,0.00011676,2]
[325191366,1714569033066,-488.0,0.00011693,2]
[325191367,1714569033077,-749.93391595,0.00011696,2]
[325191368,1714569033089,-155.0,0.00011698,2]
[325191369,1714569033101,-164.42,0.00011723,2]
[325191370,1714569033111,-512.0,0.00011815,2]
[325191371,1714569033122,-164.42,0.00011927,2]
[325191372,1714569033131,-2511.020505,0.00012111,2]
[325191373,1714569033141,-2500.0,0.00012122,2]
[325191374,1714569033150,-1994.803393,0.00012125,2]
[325191375,1714569033162,-1130.743577,0.00012125,2]
[325191376,1714569033171,-499.99,0.00012125,2]
[325191377,1714569033180,-164.42,0.0001213,2]
[325191378,1714569033191,-2788.99246079,0.00012212,2]
[325191379,1714569033201,-1544.35247494,0.00012212,2]
[325191380,1714569033213,-689.30241408,0.00012212,2]
[325191381,1714569033238,-266.34511098,0.00012212,2]
[325191382,1714569033248,-19.83681174,0.00012249,2]
[325191383,1714569033261,-244.23318826,0.00012249,2]
[325191384,1714569033270,-1994.803393,0.00012277,2]
[325191385,1714569033279,-6.39921938,0.00012277,2]
[325191386,1714569033291,-434.33736611,0.00012277,2]
[325191387,1714569033311,-519.01089523,0.00012277,2]
[325191388,1714569033323,-170.99609628,0.00012277,2]
[325191389,1714569033333,-315.48761579,0.000123,2]
[325191390,1714569033343,-913.51628793,0.00012311,2]
[325191391,1714569033356,-355.52000041,0.00012311,2]
[325191402,1714569033463,-696.77431602,0.00012311,2]
[325191433,1714569033760,-534.18939564,0.00012311,2]
[325191435,1714569033770,-164.42,0.00012334,2]
[325191438,1714569033780,-712.93425888,0.00012349,2]
[325191440,1714569033792,-387.51100691,0.00012349,2]
[325191443,1714569033812,-1004.02797844,0.00012349,2]
[325191445,1714569033824,-670.45812629,0.00012349,2]
[325191456,1714569033916,-580.66902,0.00012349,2]
[325191458,1714569033928,-6644.39960948,0.00012349,2]
[325191460,1714569033938,-1994.803393,0.00012429,2]
[325191462,1714569033948,-1130.743577,0.00012429,2]
[325191464,1714569033957,-1994.803393,0.0001258,2]
[325191466,1714569033966,-1130.743577,0.0001258,2]
[325191469,1714569033986,-300.0,0.00012678,2]
[325191471,1714569033997,-300.47,0.00012678,2]
[325191473,1714569034006,-150.0,0.00012678,2]
[325191475,1714569034017,-327.49,0.00012678,2]
[325191477,1714569034028,-1994.803393,0.00012732,2]
[325191479,1714569034038,-1130.743577,0.00012732,2]
[325191482,1714569034048,-6169.824,0.000128,2]
[325191484,1714569034058,-13548.62290364,0.00012867,2]
[325191486,1714569034074,-596.53,0.00012868,2]
[325191487,1714569034084,-1000.0,0.00012895,2]
[325191488,1714569034095,-500.0,0.00012895,2]
[325191489,1714569034111,-1000.0,0.00012896,2]
[325191490,1714569034121,-1000.0,0.00012896,2]
[325191491,1714569034131,-500.0,0.00012896,2]
[325191492,1714569034141,-500.0,0.00012896,2]
[325191493,1714569034152,-500.0,0.00012898,2]
[325191494,1714569034161,-21460.22411689,0.000129,2]
[325191495,1714569034174,-1800.68,0.000129,2]
[325191515,1714569038146,-29011.06658311,0.000129,2]
[325191517,1714569038156,-172.64655777,0.000129,2]
[325191518,1714569038166,-172.45830815,0.000129,2]
[325191519,1714569038176,-316.2190522,0.000129,2]
[325191520,1714569038185,-2318.8672,0.00012987,2]
[325191521,1714569038195,-2223.86178161,0.0001299,2]
[325191522,1714569038204,-371.63824798,0.0001299,2]
[325191523,1714569038213,-371.63824798,0.0001299,2]
[325191524,1714569038222,-371.63824798,0.0001299,2]
[325191525,1714569038231,-29480.45228526,0.00012991,2]
[325191526,1714569038240,-1777.33405598,0.00012996,2]
[325191527,1714569038249,-1063.22566128,0.00012996,2]
[325191528,1714569038259,-3414.70545517,0.00012996,2]
[325191529,1714569038442,-206.86184835,0.00012996,2]
[325191530,1714569038454,-156.3600857,0.00012996,2]
[325191531,1714569038465,-408.60896828,0.00012996,2]
[325191532,1714569038477,-155.0,0.00012996,2]
[325191533,1714569038488,-2186.81775382,0.00012996,2]
[325191534,1714569038499,-297.11659108,0.00012996,2]
[325191535,1714569038509,-2322.6580486,0.00012997,2]
[325191536,1714569038521,-194.51329397,0.00012998,2]
[325191537,1714569038531,-155.0,0.00012998,2]
[325191538,1714569038542,-48238.79663297,0.00012998,3]
[325191539,1714569038555,-92337.66308278,0.00012998,3]
[325191540,1714569038566,-10534.74375531,0.00012999,2]
[325191541,1714569038576,-824.0,0.00013,2]
[325191542,1714569038586,-2100.0,0.00013,2]
[325191543,1714569038597,-1764100.04589642,0.00013,2]
[325191544,1714569038607,-311.29151389,0.00013,2]
[325191545,1714569038619,-208.0,0.00013,2]
[325191546,1714569038629,-1727411.82156823,0.00013,2]
[325191547,1714569038641,-499484.4497528,0.00013,2]
[325191548,1714569038662,-11124.99943737,0.00013,2]
[325191549,1714569038674,-1292.04521374,0.00013,2]
[325191551,1714569038686,-336831.76950606,0.00013,2]
[325191553,1714569038697,-478.3539069,0.00013,2]
[325191556,1714569038709,-5800.90000001,0.00013,2]
[325191560,1714569038741,-977.69249947,0.00013,2]
[325191562,1714569038752,-473.3383626,0.00013,2]
[325191565,1714569038767,-2944.42856973,0.00013,2]
[325191567,1714569038778,-270.99999998,0.00013,2]
[325191719,1714569040276,-5143.67299392,0.00013,2]
[325191722,1714569040287,-255.471,0.00013,2]
[325191725,1714569040299,-12492.51817066,0.00013,2]
[325191738,1714569040349,-386.7847,0.00013,2]
[325191741,1714569040362,-6318.60101228,0.00013,2]
[325191744,1714569040374,-2901.66,0.00013,2]
[325191756,1714569040426,-23163.45607716,0.00013,2]
[325191759,1714569040437,-784.0,0.00013,2]
[325191776,1714569040507,-1053.98522685,0.00013,2]
[325191801,1714569040704,-83749.07759455,0.00013,2]
[325191804,1714569040715,-5128.81878843,0.00013,2]
[325191806,1714569040727,-6505.8562489,0.00013,2]
[325191808,1714569040740,-4151.25026103,0.00013,2]
[325191932,1714569043290,-3087.43588223,0.00013,2]
[325191933,1714569043302,-676.82420223,0.00013,2]
[325191934,1714569043315,-2319.53993372,0.00013,2]
[325191935,1714569043326,-1394.30825126,0.00013,2]
[325191936,1714569043340,-699.93810613,0.00013,2]
[325191937,1714569043351,-1243.700005,0.00013,2]
[325191938,1714569043365,-676.38004491,0.00013,2]
[325191939,1714569043397,-17265.75469869,0.00013,2]
[325191940,1714569044179,-432.0,0.00013,2]
[325191941,1714569044191,-1127.42909516,0.00013,2]
[325191942,1714569044202,-3343.6,0.00013,2]
[325191943,1714569044214,-52375.019407,0.00013,2]
[325191944,1714569044225,-189802.1507334,0.00013,2]
[325191945,1714569044236,-4278.22766741,0.00013,2]
[325191946,1714569044247,-250.0,0.00013,2]
[325191947,1714569044317,-314.82674999,0.00013,2]
[325191948,1714569044329,-34381.15543586,0.00013,2]
[325191949,1714569044495,-19787.76687358,0.00013,2]
[325191950,1714569044508,-221699.03618161,0.00013,2]
[325191955,1714569047721,-104383.87335315,0.00013,2]
[325191956,1714569048131,-451619.73562187,0.00013,2]
[325191957,1714569048143,-620.1960599,0.00013,2]
[325191958,1714569048159,-818.90005,0.00013,2]
[325191959,1714569048175,-1833.671,0.00013,2]
[325191960,1714569048186,-419.00097074,0.00013,2]
[325191961,1714569048197,-1263.0,0.00013,2]
[325191962,1714569048208,-2548.22,0.00013,2]
[325191963,1714569048220,-1228.87802066,0.00013,2]
[325191964,1714569048231,-3264.2630295,0.00013,2]
[325191965,1714569048243,-1649.32414159,0.00013,2]
[325191966,1714569048255,-279.54626831,0.00013,2]
[325191967,1714569048266,-7818.63174524,0.00013,2]
[325191968,1714569048282,-404.48230813,0.00013,2]
[325192001,1714570232377,-686.35484,0.00012,2]
[325192002,1714570232387,-211.25,0.00012119,2]
[325192003,1714570232396,-150.0,0.00012119,2]
[325192004,1714570232407,-192.17383712,0.00012155,2]
[325192005,1714570232417,-30.42508144,0.00012172,2]
[325192006,1714570232462,-857.74670121,0.00012172,2]
[325192007,1714570232474,-10111.23617097,0.00012172,2]
[325192008,1714570232487,-1071.32430337,0.00012172,2]
[325192009,1714570232499,-829.59060237,0.00012172,2]
[325192010,1714570232551,-127.95714064,0.00012172,2]
[325192011,1714570232561,-250.0,0.00012174,2]
[325192012,1714570232571,-200.0,0.00012225,2]
[325192013,1714570232580,-390.4,0.00012233,2]
[325192014,1714570232589,-216.99,0.00012255,2]
[325192015,1714570232599,-169.05,0.00012328,2]
[325192016,1714570232608,-609.6,0.00012337,2]
[325192017,1714570232620,-1292.10285936,0.0001288,2]
[325192018,1714570232644,-429.8742519,0.0001288,2]
[325192019,1714570232656,-5780.76638,0.0001288,2]
[325192020,1714570232667,-1080.51772428,0.0001288,2]
[325192021,1714570232678,-1000.0,0.00012896,2]
[325192022,1714570232687,-499.99,0.00012899,2]
[325192023,1714570232697,-681.1998,0.00012899,2]
[325192024,1714570232706,-2843.34477194,0.00012899,2]
[325192025,1714570232718,-446.25772806,0.00012899,2]
[325192026,1714570232727,-189.73207954,0.000129,2]
[325192027,1714570232737,-171.03103542,0.000129,2]